bitfinex/quotes_BTCUSD_20210402
["timestamp","ask_amount","ask_price","bid_price","bid_amount"]
[1617341529361,0.73875893,59626.0,59625.0,1.52430208]
[1617341529562,0.73875893,59626.0,59625.0,1.83367108]
[1617341529804,0.73875893,59626.0,59625.0,0.84867108]
[1617341530207,0.73875893,59626.0,59625.0,0.65367108]
[1617341530608,0.73875893,59626.0,59625.0,0.81167108]
[1617341530812,0.73875893,59626.0,59625.0,0.86167108]
[1617341531012,0.73875893,59626.0,59625.0,0.70367108]
[1617341531208,0.73875893,59626.0,59625.0,1.55367108]
[1617341531407,0.73875893,59626.0,59625.0,1.68867108]
[1617341532009,0.73875893,59626.0,59625.0,0.78867108]
[1617341532413,0.73875893,59626.0,59625.0,0.65367108]
[1617341532608,0.73875893,59626.0,59625.0,0.34430208]
[1617341534212,0.73875893,59626.0,59625.0,0.04280208]
[1617341534410,0.88375893,59626.0,59625.0,0.04280208]
[1617341535211,0.88375893,59626.0,59625.0,0.83280208]
[1617341535648,0.87875893,59626.0,59625.0,0.83280208]
[1617341536242,0.73375893,59626.0,59625.0,0.83280208]
[1617341537249,0.73375893,59626.0,59625.0,1.14217108]
[1617341538045,0.73375893,59626.0,59625.0,0.35217108]
[1617341538463,0.73375893,59626.0,59625.0,0.04280208]
[1617341538663,0.87875893,59626.0,59625.0,0.03747675]
[1617341539262,0.73375893,59626.0,59625.0,1.46684575]
[1617341542089,0.73375893,59626.0,59625.0,3.76996575]
[1617341542285,0.73375893,59626.0,59625.0,4.22226994]
[1617341542483,0.73375893,59626.0,59625.0,3.94496575]
[1617341543085,0.73375893,59626.0,59625.0,3.95061468]
[1617341543284,0.73375893,59626.0,59625.0,1.97061468]
[1617341544129,0.73375893,59626.0,59625.0,3.41061468]
[1617341544942,0.73375893,59626.0,59625.0,1.79561468]
[1617341545142,0.73375893,59626.0,59625.0,2.71561468]
[1617341545346,0.73375893,59626.0,59625.0,1.79561468]
[1617341546948,0.73375893,59626.0,59625.0,0.36624568]
[1617341547143,0.87875893,59626.0,59625.0,0.04312568]
[1617341551388,0.87875893,59626.0,59625.0,0.04812568]
[1617341552591,0.67875893,59626.0,59625.0,0.04812568]
[1617341555831,0.87500303,59626.0,59625.0,0.04812568]
[1617341556022,0.67875893,59626.0,59625.0,0.04812568]
[1617341556431,2.37960093,59626.0,59625.0,0.01812568]
[1617341556644,1.74903093,59626.0,59625.0,0.01812568]
[1617341556837,2.14903093,59626.0,59625.0,0.01812568]
[1617341557040,2.04903093,59626.0,59625.0,0.01812568]
[1617341557246,2.14903093,59626.0,59625.0,0.01812568]
[1617341557844,3.14403093,59626.0,59625.0,0.01812568]
[1617341558040,2.14903093,59626.0,59625.0,0.01812568]
[1617341559976,1.79903093,59626.0,59625.0,0.01812568]
[1617341560177,1.84903093,59626.0,59625.0,0.01812568]
[1617341560376,1.75903093,59626.0,59625.0,0.01812568]
[1617341560773,1.43460093,59626.0,59625.0,0.01812568]
[1617341561181,2.32460093,59626.0,59625.0,0.01312568]
[1617341561378,1.48460093,59626.0,59625.0,0.01312568]
[1617341561580,1.61590868,59626.0,59625.0,0.01312568]
[1617341561993,1.35225868,59626.0,59625.0,0.01312568]
[1617341562192,1.22095093,59626.0,59623.0,0.01788105]
[1617341562396,0.83375893,59626.0,59623.0,0.03]
[1617341562594,0.425,59625.0,59623.0,0.03]
[1617341562796,0.327192,59624.0,59606.0,0.02420794]
[1617341562998,0.425,59625.0,59623.0,0.03]
[1617341563195,0.295,59624.0,59623.0,0.03]
[1617341563393,1.265,59624.0,59623.0,0.03]
[1617341563591,0.295,59624.0,59623.0,0.03]
[1617341563992,0.682173,59624.0,59623.0,0.03]
[1617341564612,1.017972,59624.0,59623.0,0.03]
[1617341564815,1.017972,59624.0,59617.0,0.03]
[1617341564816,0.125925,59622.0,59617.0,0.03]
[1617341565015,0.772173,59621.0,59617.0,0.03]
[1617341565215,0.385,59621.0,59617.0,0.03]
[1617341565415,0.44716325,59621.0,59617.0,0.03]
[1617341566015,0.44716325,59621.0,59620.0,0.03]
[1617341566415,0.5769435,59621.0,59620.0,0.03]
[1617341566621,0.9641165,59621.0,59620.0,0.03]
[1617341566820,1.17014525,59621.0,59620.0,0.03]
[1617341567451,0.78297225,59621.0,59620.0,0.03]
[1617341567653,1.17014525,59621.0,59620.0,0.03]
[1617341568663,1.17014525,59621.0,59613.0,0.03]
[1617341568664,0.938173,59620.0,59613.0,0.03]
[1617341568864,0.006,59614.0,59612.0,0.03]
[1617341569063,3.907173,59613.0,59609.0,0.03]
[1617341569268,0.004,59610.0,59607.0,0.03]
[1617341569456,1.966,59608.0,59607.0,0.03]
[1617341569661,2.706333,59608.0,59607.0,0.03]
[1617341569868,0.746333,59608.0,59607.0,0.03]
[1617341570268,0.35916,59608.0,59607.0,0.03]
[1617341570874,0.447883,59609.0,59607.0,0.03]
[1617341571071,0.377883,59609.0,59608.0,0.03]
[1617341571472,0.765056,59609.0,59607.0,0.03]
[1617341571670,0.816323,59609.0,59607.0,0.03]
[1617341571872,0.657173,59608.0,59607.0,0.03]
[1617341572071,0.27,59608.0,59607.0,0.03]
[1617341573295,0.27,59608.0,59607.0,0.03747901]
[1617341573901,0.657173,59608.0,59607.0,0.03747901]
[1617341575527,0.27,59608.0,59607.0,0.03747901]
[1617341576132,0.657173,59608.0,59607.0,0.03747901]
[1617341576326,0.822173,59608.0,59607.0,0.03747901]
[1617341576524,0.657173,59608.0,59607.0,0.03747901]
[1617341576926,0.817173,59608.0,59607.0,0.03747901]
[1617341578745,0.817173,59608.0,59607.0,0.04312962]
[1617341579742,0.812173,59608.0,59607.0,0.04312962]
[1617341580371,0.652173,59608.0,59607.0,0.04312962]
[1617341580573,0.952173,59608.0,59607.0,0.04312962]
[1617341580774,0.265,59608.0,59607.0,0.04312962]
[1617341580977,0.377883,59609.0,59607.0,0.04312962]
[1617341581177,0.377883,59609.0,59608.0,0.03]
[1617341582581,0.251922,59609.0,59608.0,0.03]
[1617341586627,0.639095,59609.0,59608.0,0.03]
[1617341586822,0.251922,59609.0,59608.0,0.03]
[1617341588250,0.246922,59609.0,59608.0,0.03]
[1617341588950,0.14046457,59609.0,59608.0,0.03]
[1617341590173,0.52763757,59609.0,59608.0,0.03]
[1617341590576,0.69263757,59609.0,59608.0,0.03]
[1617341593597,0.30546457,59609.0,59608.0,0.03]
[1617341595198,0.14046457,59609.0,59608.0,0.03]
[1617341595601,0.60618457,59609.0,59608.0,0.03]
[1617341596027,0.99335757,59609.0,59608.0,0.03]
[1617341596427,1.23335757,59609.0,59608.0,0.03]
[1617341599248,1.23335757,59609.0,59608.0,0.0375798]
[1617341600055,1.12965757,59609.0,59608.0,0.0375798]
[1617341604704,2.12465757,59609.0,59608.0,0.0375798]
[1617341604912,4.77565757,59609.0,59590.0,0.125958]
[1617341605123,3.05584474,59602.0,59601.0,0.03]
[1617341605321,4.64201774,59602.0,59599.0,0.03]
[1617341605527,2.707173,59600.0,59599.0,0.03]
[1617341605719,2.707173,59600.0,59596.0,0.03]
[1617341605720,4.31111674,59600.0,59596.0,0.03]
[1617341605925,2.707173,59595.0,59594.0,0.03]
[1617341606124,3.3587006,59595.0,59594.0,0.03]
[1617341606317,3.75864434,59595.0,59594.0,0.03]
[1617341606526,4.72864434,59595.0,59594.0,0.03]
[1617341606728,2.40567674,59595.0,59594.0,0.03]
[1617341606928,1.43567674,59595.0,59594.0,0.03]
[1617341607729,1.68767374,59595.0,59594.0,0.03]
[1617341608129,1.73767374,59595.0,59594.0,0.03]
[1617341608329,2.16767374,59595.0,59594.0,0.03]
[1617341608534,3.16267374,59595.0,59592.0,0.03]
[1617341608732,2.707173,59592.0,59591.0,0.03]
[1617341608931,3.10909516,59592.0,59591.0,0.03]
[1617341609148,3.36110716,59592.0,59591.0,0.03]
[1617341609549,1.53610716,59592.0,59591.0,0.03]
[1617341609755,1.53412874,59592.0,59591.0,0.03]
[1617341610556,2.68812874,59592.0,59589.0,0.03]
[1617341610756,2.869173,59590.0,59589.0,0.03]
[1617341610956,3.839173,59590.0,59589.0,0.03]
[1617341611148,4.722173,59590.0,59589.0,0.03]
[1617341611351,3.727173,59590.0,59589.0,0.03]
[1617341611551,4.722173,59590.0,59589.0,0.03]
[1617341611782,4.886173,59590.0,59589.0,0.03]
[1617341611980,1.571173,59590.0,59589.0,0.03]
[1617341612182,1.357173,59590.0,59589.0,0.03]
[1617341612384,0.387173,59590.0,59589.0,0.03]
[1617341612581,0.437173,59590.0,59589.0,0.03]
[1617341612786,0.590173,59590.0,59589.0,0.03]
[1617341613586,0.387173,59590.0,59589.0,0.03]
[1617341613991,0.657173,59590.0,59589.0,0.03]
[1617341614182,0.387173,59590.0,59589.0,0.03]
[1617341614999,0.587173,59590.0,59589.0,0.03]
[1617341616202,0.787173,59590.0,59589.0,0.03]
[1617341618736,0.4,59590.0,59589.0,0.03]
[1617341618932,0.2,59590.0,59589.0,0.03]
[1617341619131,0.587173,59590.0,59589.0,0.03]
[1617341619529,0.2,59590.0,59589.0,0.03]
[1617341622307,0.2,59590.0,59589.0,0.96208494]
[1617341622507,0.2,59590.0,59589.0,0.03]
[1617341623504,0.587173,59590.0,59589.0,0.03]
[1617341624510,0.722173,59590.0,59589.0,0.03]
[1617341624907,0.722173,59590.0,59589.0,0.03748127]
[1617341629539,0.91425794,59590.0,59589.0,0.03748127]
[1617341629741,0.722173,59590.0,59589.0,0.03748127]
[1617341630356,0.91425794,59590.0,59589.0,0.03748127]
[1617341630953,0.722173,59590.0,59589.0,0.03748127]
[1617341635437,0.90021159,59590.0,59589.0,0.03748127]
[1617341635619,0.722173,59590.0,59589.0,0.03748127]
[1617341637120,0.88078407,59590.0,59589.0,0.03748127]
[1617341638129,1.022173,59590.0,59589.0,0.03748127]
[1617341638731,1.012173,59590.0,59589.0,0.03748127]
[1617341639124,1.010773,59590.0,59589.0,0.03748127]
[1617341639325,1.000773,59590.0,59589.0,0.03748127]
[1617341639535,1.156773,59590.0,59589.0,0.03748127]
[1617341639734,1.050773,59590.0,59589.0,0.03748127]
[1617341639929,1.000773,59590.0,59589.0,0.03748127]
[1617341640132,1.680773,59590.0,59589.0,0.03748127]
[1617341640530,1.000773,59590.0,59589.0,0.03748127]
[1617341640759,0.99054542,59590.0,59589.0,0.03748127]
[1617341641961,1.78054542,59590.0,59589.0,0.03748127]
[1617341642362,0.99054542,59590.0,59589.0,0.03748127]
[1617341642962,1.58054542,59590.0,59589.0,0.03748127]
[1617341643162,0.99054542,59590.0,59589.0,0.03748127]
[1617341644184,0.69054542,59590.0,59589.0,0.03748127]
[1617341644385,0.79054542,59590.0,59589.0,0.03748127]
[1617341644788,0.69054542,59590.0,59589.0,0.03748127]
[1617341646010,1.26054542,59590.0,59589.0,0.03748127]
[1617341646208,1.36054542,59590.0,59589.0,0.03748127]
[1617341646806,0.79054542,59590.0,59589.0,0.03748127]
[1617341647407,0.69054542,59590.0,59589.0,0.03748127]
[1617341648635,0.79054542,59590.0,59589.0,0.03748127]
[1617341649034,0.67054542,59590.0,59589.0,0.03748127]
[1617341649433,0.77054542,59590.0,59589.0,0.03748127]
[1617341650437,0.77351392,59590.0,59589.0,0.03748127]
[1617341651978,3.39351392,59590.0,59589.0,0.03]
[1617341652179,3.39054542,59590.0,59589.0,0.03]
[1617341652377,1.07054542,59590.0,59589.0,0.03]
[1617341652780,1.23154542,59590.0,59589.0,0.03]
[1617341652975,2.00154542,59590.0,59589.0,0.03]
[1617341653380,2.05154542,59590.0,59589.0,0.03]
[1617341653781,2.30358142,59590.0,59589.0,0.03]
[1617341654388,2.14258142,59590.0,59589.0,0.03]
[1617341656812,2.71258142,59590.0,59589.0,0.03]
[1617341657011,2.14258142,59590.0,59589.0,0.03]
[1617341657212,1.37258142,59590.0,59589.0,0.03]
[1617341657810,2.24258142,59590.0,59589.0,0.03]
[1617341658614,3.23758142,59590.0,59588.0,0.03]
[1617341658816,0.58733424,59589.0,59587.0,0.03]
[1617341659037,4.47915074,59588.0,59587.0,0.03]
[1617341659236,5.92137074,59588.0,59587.0,0.03]
[1617341659435,4.92637074,59588.0,59587.0,0.03]
[1617341660036,5.92137074,59588.0,59587.0,0.03]
[1617341660237,4.92637074,59588.0,59587.0,0.03]
[1617341660836,4.97637074,59588.0,59587.0,0.03]
[1617341661439,5.97137074,59588.0,59587.0,0.03]
[1617341661677,4.97637074,59588.0,59565.0,0.00303724]
[1617341661879,5.48419774,59588.0,59587.0,0.03]
[1617341662077,3.90433674,59588.0,59580.0,0.03]
[1617341662280,0.05,59576.0,59564.0,0.9985]
[1617341662479,0.51015568,59576.0,59575.0,0.03]
[1617341663676,0.76220468,59576.0,59575.0,0.03]
[1617341664314,1.38714842,59576.0,59575.0,0.03]
[1617341664714,1.77432142,59576.0,59575.0,0.03]
[1617341664919,1.94132142,59576.0,59575.0,0.03]
[1617341665178,1.55414842,59576.0,59575.0,0.03]
[1617341665779,1.94132142,59576.0,59575.0,0.03]
[1617341668485,1.55414842,59576.0,59575.0,0.03]
[1617341668881,1.94132142,59576.0,59575.0,0.03]
[1617341671102,1.15420468,59576.0,59575.0,0.03]
[1617341671303,1.104309,59576.0,59575.0,0.03]
[1617341671501,1.104309,59576.0,59575.0,0.03748309]
[1617341672533,0.33251691,59575.0,59560.0,0.15]
[1617341672741,0.30251691,59575.0,59574.0,0.005]
[1617341672938,0.30251691,59575.0,59574.0,0.03]
[1617341673137,0.11,59568.0,59561.0,0.00303724]
[1617341673338,0.08,59568.0,59567.0,2.97]
[1617341673733,0.08,59568.0,59567.0,2.98267]
[1617341673936,0.332038,59568.0,59567.0,0.04267]
[1617341674134,0.332038,59568.0,59567.0,0.44767]
[1617341674335,0.332038,59568.0,59567.0,0.03]
[1617341674734,0.332038,59568.0,59567.0,0.72]
[1617341675748,0.332038,59568.0,59567.0,2.117173]
[1617341676150,0.332038,59568.0,59567.0,0.417173]
[1617341676352,0.332038,59568.0,59567.0,0.03]
[1617341685874,0.332038,59568.0,59567.0,0.20258916]
[1617341686080,0.332038,59568.0,59567.0,3.30258916]
[1617341686081,0.075,59568.0,59567.0,3.30258916]
[1617341686280,0.30251691,59575.0,59567.0,4.29476216]
[1617341686475,0.30251691,59575.0,59574.0,3.142651]
[1617341686874,0.30251691,59575.0,59574.0,3.192651]
[1617341687073,0.30251691,59575.0,59574.0,3.492651]
[1617341687271,0.30251691,59575.0,59574.0,4.097651]
[1617341687670,0.30251691,59575.0,59574.0,3.797651]
[1617341687871,0.30083691,59575.0,59574.0,3.797651]
[1617341688086,0.30083691,59575.0,59574.0,3.956651]
[1617341688277,0.30083691,59575.0,59574.0,3.906651]
[1617341688482,0.30083691,59575.0,59574.0,3.956651]
[1617341688685,0.30083691,59575.0,59574.0,4.208602]
[1617341693337,0.30083691,59575.0,59574.0,3.956651]
[1617341695582,0.30083691,59575.0,59574.0,4.456651]
[1617341698381,0.29583691,59575.0,59574.0,4.456651]
[1617341698584,0.29583691,59575.0,59574.0,3.956651]
[1617341699590,0.29583691,59575.0,59574.0,3.906651]
[1617341700589,0.29583691,59575.0,59574.0,3.956651]
[1617341701211,0.29583691,59575.0,59574.0,4.056651]
[1617341702511,0.29583691,59575.0,59574.0,3.956651]
[1617341702912,0.29583691,59575.0,59574.0,4.056651]
[1617341703116,0.29583691,59575.0,59574.0,4.071651]
[1617341703315,0.29583691,59575.0,59574.0,4.617961]
[1617341704135,0.29583691,59575.0,59574.0,4.917961]
[1617341704541,0.251892,59604.0,59574.0,5.409892]
[1617341704744,0.419975,59611.0,59599.0,3.13]
[1617341704941,0.419975,59611.0,59599.0,3.142629]
[1617341705133,0.419975,59611.0,59610.0,0.03]
[1617341705536,0.807148,59611.0,59610.0,0.03]
[1617341705931,1.802148,59611.0,59610.0,0.03]
[1617341706131,1.087148,59611.0,59610.0,0.03]
[1617341706358,0.807148,59611.0,59610.0,0.03]
[1617341709989,0.807148,59611.0,59610.0,0.03747863]
[1617341710190,0.982148,59611.0,59610.0,0.03747863]
[1617341710415,0.251878,59612.0,59610.0,0.03747863]
[1617341710624,0.251878,59612.0,59611.0,2.76]
[1617341710817,0.251878,59612.0,59611.0,3.147173]
[1617341711019,0.166127,59630.0,59611.0,3.147173]
[1617341711225,0.419863,59625.0,59618.0,0.03]
[1617341711420,0.0002,59630.0,59624.0,0.03]
[1617341711627,0.0002,59630.0,59625.0,3.40730419]
[1617341711823,0.09975893,59626.0,59625.0,4.38447719]
[1617341712022,0.09975893,59626.0,59625.0,4.73964243]
[1617341713617,0.09075893,59626.0,59625.0,4.73964243]
[1617341713819,0.09075893,59626.0,59625.0,4.38447719]
[1617341714845,0.09075893,59626.0,59625.0,1.28447719]
[1617341715043,0.09075893,59626.0,59625.0,0.69447719]
[1617341715248,0.09075893,59626.0,59625.0,3.60447719]
[1617341715446,0.09075893,59626.0,59625.0,3.61195394]
[1617341715643,0.09075893,59626.0,59625.0,1.24195394]
[1617341715843,0.09075893,59626.0,59625.0,0.70195394]
[1617341716244,0.09075893,59626.0,59625.0,1.45195394]
[1617341716864,0.09075893,59626.0,59625.0,0.70195394]
[1617341717269,0.09075893,59626.0,59625.0,0.69997825]
[1617341718869,0.09075893,59626.0,59625.0,0.42464975]
[1617341719267,0.09075893,59626.0,59625.0,0.69997825]
[1617341721283,0.09075893,59626.0,59625.0,0.87497825]
[1617341724121,1.08575893,59626.0,59625.0,0.21247675]
[1617341724319,1.47293193,59626.0,59625.0,0.03747675]
[1617341725560,1.78793193,59626.0,59625.0,0.03747675]
[1617341725973,1.83793193,59626.0,59625.0,0.03747675]
[1617341726962,1.83793193,59626.0,59625.0,0.00747675]
[1617341727161,3.45793193,59626.0,59625.0,0.00747675]
[1617341727403,3.077173,59624.0,59620.0,0.03]
[1617341727605,1.967173,59621.0,59620.0,0.03]
[1617341727803,1.237173,59621.0,59620.0,0.045]
[1617341727996,1.132173,59621.0,59620.0,0.045]
[1617341728396,0.387173,59621.0,59620.0,0.045]
[1617341731396,0.251886,59622.0,59620.0,0.045]
[1617341731600,0.251886,59622.0,59621.0,0.03]
[1617341732815,0.639059,59622.0,59621.0,0.03]
[1617341733018,0.251886,59622.0,59621.0,0.03]
[1617341733417,0.639059,59622.0,59621.0,0.03]
[1617341733617,0.794059,59622.0,59621.0,0.03]
[1617341734816,0.789059,59622.0,59621.0,0.03]
[1617341735244,0.09075893,59626.0,59621.0,0.03]
[1617341735445,0.47793193,59626.0,59625.0,0.03]
[1617341735842,1.51293193,59626.0,59625.0,0.03]
[1617341736042,0.74293193,59626.0,59625.0,0.03]
[1617341737242,1.73793193,59626.0,59625.0,0.03]
[1617341737644,0.74293193,59626.0,59625.0,0.03]
[1617341739668,0.73793193,59626.0,59625.0,0.03]
[1617341739870,0.73891853,59626.0,59625.0,0.03]
[1617341740069,0.69793193,59626.0,59625.0,0.03]
[1617341740269,0.73793193,59626.0,59625.0,0.03]
[1617341740503,1.73293193,59626.0,59625.0,0.03]
[1617341740702,0.73793193,59626.0,59625.0,0.03]
[1617341740908,0.357173,59620.0,59615.0,0.125916]
[1617341741104,0.327173,59620.0,59619.0,0.03]
[1617341741307,0.00098728,59622.0,59619.0,0.03]
[1617341741504,0.00098728,59622.0,59621.0,0.03]
[1617341742305,0.25282828,59622.0,59621.0,0.03]
[1617341742503,0.63902,59622.0,59621.0,0.03]
[1617341742704,0.84902,59622.0,59621.0,0.03]
[1617341743945,0.85000728,59622.0,59621.0,0.03]
[1617341744750,1.94500728,59622.0,59621.0,0.03]
[1617341744950,2.31902,59622.0,59621.0,0.03]
[1617341745148,0.84902,59622.0,59621.0,0.03]
[1617341747753,1.55902,59622.0,59621.0,0.03]
[1617341747954,0.88902,59622.0,59621.0,0.03]
[1617341748372,0.84902,59622.0,59621.0,0.03]
[1617341750773,2.32902,59622.0,59621.0,0.03]
[1617341750987,0.84902,59622.0,59621.0,0.03]
[1617341751788,1.50902,59622.0,59621.0,0.03]
[1617341752993,0.84902,59622.0,59621.0,0.03]
[1617341765522,0.94902,59622.0,59621.0,0.03]
[1617341766120,1.84402,59622.0,59621.0,0.03]
[1617341766333,1.84402,59622.0,59608.0,1.0]
[1617341766334,0.935,59621.0,59608.0,1.0]
[1617341766534,3.077179,59616.0,59613.0,0.03]
[1617341766761,2.848,59609.0,59608.0,1.0]
[1617341766953,4.727179,59609.0,59608.0,1.0]
[1617341767161,5.86424356,59609.0,59608.0,1.0]
[1617341767352,6.2641873,59609.0,59608.0,1.0]
[1617341767551,6.5161383,59609.0,59608.0,1.0]
[1617341769147,6.5161383,59609.0,59608.0,0.664031]
[1617341769378,0.08399228,59607.0,59603.0,0.03]
[1617341769580,0.387179,59603.0,59602.0,0.03]
[1617341769779,4.963869,59603.0,59602.0,0.03]
[1617341769981,4.98365514,59603.0,59602.0,0.03]
[1617341771996,2.29365514,59603.0,59602.0,0.03]
[1617341772400,1.29365514,59603.0,59602.0,0.03]
[1617341772598,2.35365514,59603.0,59602.0,0.03]
[1617341772799,2.40365514,59603.0,59602.0,0.03]
[1617341773002,2.56565514,59603.0,59601.0,0.03]
[1617341773202,3.47712274,59602.0,59601.0,0.03]
[1617341773398,4.03690883,59602.0,59601.0,0.03]
[1617341774198,4.19690883,59602.0,59601.0,0.03]
[1617341774401,0.16917524,59597.0,59585.0,0.002]
[1617341774635,0.191968,59591.0,59588.0,0.03]
[1617341774831,0.579328,59591.0,59588.0,0.03]
[1617341775031,0.1,59590.0,59588.0,0.03]
[1617341775229,0.17,59589.0,59588.0,0.03]
[1617341775629,0.17,59589.0,59586.0,0.03]
[1617341775828,0.251967,59588.0,59586.0,0.03]
[1617341776629,0.19,59587.0,59586.0,0.03]
[1617341776829,0.26,59587.0,59586.0,0.03]
[1617341777651,0.647179,59587.0,59586.0,0.03]
[1617341777851,0.26,59587.0,59586.0,0.03]
[1617341778250,0.647179,59587.0,59586.0,0.03]
[1617341782269,0.64756961,59587.0,59586.0,0.03028555]
[1617341782496,0.64756961,59587.0,59586.0,0.03776719]
[1617341786129,0.64756961,59587.0,59586.0,0.00776719]
[1617341786330,1.87756961,59587.0,59586.0,0.00776719]
[1617341786536,2.27751335,59587.0,59586.0,0.00776719]
[1617341786929,1.04751335,59587.0,59586.0,0.00776719]
[1617341787132,0.64756961,59587.0,59586.0,0.00776719]
[1617341788565,0.64756961,59587.0,59586.0,0.03776719]
[1617341789366,0.64756961,59587.0,59586.0,0.00776719]
[1617341789965,0.74756961,59587.0,59586.0,0.00776719]
[1617341790777,0.64756961,59587.0,59586.0,0.00276719]
[1617341791175,1.04751335,59587.0,59586.0,0.00276719]
[1617341791376,1.16756961,59587.0,59586.0,0.00276719]
[1617341791574,1.04751335,59587.0,59586.0,0.00276719]
[1617341791776,0.81209232,59587.0,59586.0,0.00276719]
[1617341792177,1.21203606,59587.0,59586.0,0.00276719]
[1617341792375,1.31203606,59587.0,59586.0,0.00276719]
[1617341793202,1.21203606,59587.0,59586.0,0.00276719]
[1617341793403,0.81209232,59587.0,59586.0,0.00276719]
[1617341793602,0.91209232,59587.0,59586.0,0.00276719]
[1617341793800,1.21203606,59587.0,59586.0,0.00276719]
[1617341793999,1.47203606,59587.0,59586.0,0.00276719]
[1617341794201,1.37203606,59587.0,59586.0,0.00276719]
[1617341796422,0.97209232,59587.0,59586.0,0.00276719]
[1617341798022,1.07209232,59587.0,59586.0,0.00276719]
[1617341799244,3.66209232,59587.0,59586.0,0.00276719]
[1617341799449,0.252025,59579.0,59569.0,0.126001]
[1617341799651,0.159,59570.0,59566.0,0.03]
[1617341799851,0.159,59570.0,59564.0,1.0]
[1617341799852,0.27237184,59569.0,59564.0,1.03]
[1617341800049,0.1,59568.0,59564.0,1.0]
[1617341800249,0.1,59567.0,59564.0,1.0]
[1617341800447,0.15,59566.0,59564.0,1.0]
[1617341800670,0.88712274,59565.0,59564.0,0.995]
[1617341800899,0.487179,59565.0,59564.0,0.995]
[1617341801287,0.487179,59565.0,59564.0,0.03]
[1617341801689,0.387179,59565.0,59564.0,0.03]
[1617341802683,0.592179,59565.0,59564.0,0.03]
[1617341802885,0.99212274,59565.0,59564.0,0.03]
[1617341803696,0.99254399,59565.0,59564.0,0.03]
[1617341808753,1.09254399,59565.0,59564.0,0.03]
[1617341809150,0.99254399,59565.0,59564.0,0.03]
[1617341814202,1.47578399,59565.0,59564.0,0.03]
[1617341816422,1.47578399,59565.0,59553.0,0.168228]
[1617341816635,0.252097,59559.0,59553.0,0.168028]
[1617341816836,0.222097,59559.0,59558.0,0.03]
[1617341817831,0.220497,59559.0,59558.0,0.03]
[1617341818433,0.607676,59559.0,59558.0,0.03]
[1617341818630,0.705497,59559.0,59558.0,0.03]
[1617341819855,0.220497,59559.0,59558.0,0.03]
[1617341821876,0.607676,59559.0,59558.0,0.03]
[1617341825098,0.60810228,59559.0,59558.0,0.03]
[1617341825499,0.22092328,59559.0,59558.0,0.03]
[1617341825701,0.21592328,59559.0,59558.0,0.03]
[1617341827126,0.60310228,59559.0,59558.0,0.03]
[1617341827529,0.97310228,59559.0,59558.0,0.03]
[1617341827926,0.77310228,59559.0,59558.0,0.03]
[1617341828327,0.97310228,59559.0,59558.0,0.03]
[1617341828526,0.93110228,59559.0,59558.0,0.03748516]
[1617341828727,0.77310228,59559.0,59558.0,0.03748516]
[1617341832055,0.97310228,59559.0,59558.0,0.03748516]
[1617341834461,0.77310228,59559.0,59558.0,0.03748516]
[1617341834661,0.38592328,59559.0,59558.0,0.03748516]
[1617341834862,0.97310228,59559.0,59558.0,0.03748516]
[1617341835275,0.77310228,59559.0,59558.0,0.03748516]
[1617341835471,0.38592328,59559.0,59558.0,0.03748516]
[1617341835672,0.97310228,59559.0,59558.0,0.03748516]
[1617341836270,0.77310228,59559.0,59558.0,0.03748516]
[1617341836671,0.97310228,59559.0,59558.0,0.03748516]
[1617341836870,0.97310228,59559.0,59558.0,0.03998516]
[1617341837471,0.77310228,59559.0,59558.0,0.03998516]
[1617341837693,0.97310228,59559.0,59558.0,0.03998516]
[1617341838094,1.02731228,59559.0,59558.0,0.03998516]
[1617341838497,0.82731228,59559.0,59558.0,0.03998516]
[1617341838699,0.44013328,59559.0,59558.0,0.03998516]
[1617341839499,0.21592328,59559.0,59558.0,0.03998516]
[1617341839699,0.20792328,59559.0,59558.0,0.03998516]
[1617341840518,0.79510228,59559.0,59558.0,0.03998516]
[1617341841915,0.59510228,59559.0,59558.0,0.03998516]
[1617341842118,0.79510228,59559.0,59558.0,0.03998516]
[1617341842317,0.96510228,59559.0,59558.0,0.03998516]
[1617341842518,0.76510228,59559.0,59558.0,0.03998516]
[1617341842947,0.37792328,59559.0,59558.0,0.03998516]
[1617341843346,0.57792328,59559.0,59558.0,0.03998516]
[1617341843745,0.36792328,59559.0,59558.0,0.03998516]
[1617341844142,0.56792328,59559.0,59558.0,0.03998516]
[1617341844742,0.36792328,59559.0,59558.0,0.03998516]
[1617341845143,0.75510228,59559.0,59558.0,0.03998516]
[1617341845709,0.95510228,59559.0,59558.0,0.03998516]
[1617341846502,0.75510228,59559.0,59558.0,0.03998516]
[1617341846909,0.36792328,59559.0,59558.0,0.03998516]
[1617341848104,0.75510228,59559.0,59558.0,0.03998516]
[1617341848306,0.95510228,59559.0,59558.0,0.03998516]
[1617341848705,0.91314415,59559.0,59557.0,0.126043]
[1617341848907,0.185,59558.0,59557.0,0.126043]
[1617341849812,0.185,59558.0,59557.0,0.156043]
[1617341850006,0.19792328,59559.0,59557.0,0.156043]
[1617341850209,0.19792328,59559.0,59557.0,0.126043]
[1617341850408,0.387179,59558.0,59557.0,0.126043]
[1617341851422,0.387179,59558.0,59557.0,0.156043]
[1617341853974,0.387179,59558.0,59557.0,0.03]
[1617341853975,0.582179,59558.0,59557.0,0.03]
[1617341855756,0.195,59558.0,59557.0,0.03]
[1617341856978,0.19542558,59558.0,59557.0,0.03]
[1617341857380,0.19641524,59558.0,59557.0,0.03]
[1617341857780,0.00141524,59558.0,59557.0,0.03]
[1617341858385,0.60029433,59558.0,59557.0,0.03]
[1617341858590,0.59930467,59558.0,59557.0,0.03]
[1617341858806,1.20148367,59558.0,59557.0,0.03]
[1617341859409,0.81529433,59558.0,59557.0,0.03]
[1617341859609,0.81430467,59558.0,59557.0,0.03]
[1617341860207,0.59930467,59558.0,59557.0,0.03]